fUST/lending_fUST_20250430
["ID","MTS","AMOUNT","RATE_DAILY","PERIOD"]
[359434346,1746015042772,-500.0,0.00027573,5]
[359434347,1746015042781,-165.68165095,0.00027573,5]
[359434348,1746015042791,-500.0,0.00027573,5]
[359434349,1746015042800,-622.01396728,0.00027573,5]
[359434350,1746015042810,-502.04073667,0.00027573,5]
[359434351,1746015042820,-206.37104612,0.00027573,5]
[359434352,1746015042829,-217.79759368,0.00027573,5]
[359434353,1746015042839,-500.0,0.00027573,5]
[359434354,1746015042850,-58755.34538741,0.00027588,2]
[359434355,1746015042863,-465.17071124,0.00027588,2]
[359434366,1746015043434,-400.0,0.00027397,2]
[359434367,1746015043444,-819.93767395,0.00027588,2]
[359434368,1746015043459,-629.88762306,0.00027588,2]
[359434369,1746015043471,-613.67346902,0.00027588,2]
[359434370,1746015043482,-2800.09872807,0.00027588,2]
[359434371,1746015043516,-8184.97505866,0.00027588,2]
[359434378,1746015046556,-400.0,0.00027397,2]
[359434379,1746015046566,-719.30002999,0.00027588,2]
[359434380,1746015046660,-14444.62934182,0.00027588,2]
[359434402,1746016148707,-182.39029496,0.0002,2]
[359434403,1746016151655,-157.02175172,0.0002,2]
[359434404,1746016154745,153.05989765,0.000168,2]
[359434405,1746016155478,-163.04468616,0.0002,2]
[359434406,1746016158924,-180.33606607,0.0002,2]
[359434407,1746016161781,-233.51131837,0.0002,2]
[359434408,1746016166054,-150.51153262,0.0002,2]
[359434409,1746016170964,-109.91815554,0.0002,2]
[359434410,1746016170989,-125.90225133,0.0002,2]
[359434417,1746016175607,-206.36682733,0.0002,2]
[359434418,1746016181303,-189.89753136,0.0002,2]
[359434419,1746016188628,-163.04468616,0.0002,2]
[359434420,1746016193065,-370.79775501,0.0002,2]
[359434421,1746016198177,-373.48500577,0.0002,2]
[359434422,1746016203945,-168.079485,0.0002,2]
[359434423,1746016209531,-175.6895645,0.0002,2]
[359434424,1746016215631,-300.0,0.0002,2]
[359434425,1746016219916,-161.16470176,0.0002,2]
[359434426,1746016223600,-250.0,0.0002,2]
[359434427,1746016226762,-151.856853,0.0002,2]
[359434428,1746016230378,-128.67974774,0.0002,2]
[359434468,1746016232457,-300.0,0.00024999,2]
[359434470,1746016232466,-300.0,0.00024999,2]
[359434471,1746016232475,-1200.0,0.00024999,2]
[359434474,1746016232485,-1041.07976781,0.00025,7]
[359434475,1746016232494,-38178.5448082,0.00025,2]
[359434479,1746016232514,-7326.0336878,0.00025,2]
[359434545,1746016238642,-500.0,0.00024999,2]
[359434546,1746016238652,-325.79851823,0.00024999,2]
[359434547,1746016238662,-500.0,0.00024999,2]
[359434548,1746016238672,-500.0,0.00024999,2]
[359434549,1746016238681,-462.65793717,0.00024999,2]
[359434550,1746016238693,-500.0,0.00024999,2]
[359434551,1746016238703,-272.7635446,0.00024999,2]
[359434563,1746016241219,-35.92159498,0.00024999,2]
[359434596,1746016779709,-335.3980576,0.00023694,2]
[359434597,1746016956982,-1087.30222055,0.00023691,2]
[359434598,1746016977387,-443.90461392,0.00023691,2]
[359434599,1746016982628,-326.86521952,0.00023691,2]
[359434600,1746016986400,-44.08667551,0.00023691,2]
[359434601,1746016988770,-251.01485887,0.00023488,2]
[359434602,1746016994557,-160.65213813,0.00023488,2]
[359434740,1746017376877,-211.67576837,0.00023755,2]
[359434741,1746017381316,-88.32528753,0.00023755,2]
[359434742,1746017381341,-63.85550358,0.00023887,2]
[359434743,1746017386117,-96.36558216,0.00023887,2]
[359434791,1746017436360,-300.0,0.00023987,2]
[359434792,1746017436374,-300.0,0.00023987,2]
[359434793,1746017436386,-184.19439489,0.00023987,2]
[359434794,1746017436401,-1015.80560511,0.00023987,2]
[359434795,1746017436413,-1690.72527508,0.00023988,2]
[359434796,1746017436426,-22025.63045792,0.00023988,2]
[359434797,1746017436438,-250.0,0.00024237,2]
[359434798,1746017436448,-583.99587,0.00024491,2]
[359434799,1746017436458,-1000.0,0.00024538,2]
[359434800,1746017436468,-250.0,0.00024538,2]
[359434801,1746017436478,-15699.69690338,0.00024538,2]
[359434802,1746017436491,-12364.59657413,0.00024538,2]
[359434803,1746017436500,-269.18,0.00024628,3]
[359434804,1746017436510,-807.56,0.00024628,3]
[359434805,1746017436520,-21569.08005108,0.00024633,3]
[359434806,1746017436530,-819.46853891,0.00024633,2]
[359434807,1746017436543,-25814.23252165,0.00024633,2]
[359434827,1746017437721,-69495.50803193,0.00024633,2]
[359434829,1746017437731,-500.0,0.00024634,2]
[359434831,1746017437740,-500.0,0.00024634,2]
[359434833,1746017437749,-500.0,0.00024634,2]
[359434835,1746017437759,-500.0,0.00024634,2]
[359434837,1746017437769,-500.0,0.00024634,2]
[359434839,1746017437778,-482.35802469,0.00024634,2]
[359434841,1746017437787,-500.0,0.00024634,2]
[359434843,1746017437797,-500.0,0.00024634,2]
[359434845,1746017437806,-500.0,0.00024634,2]
[359434847,1746017437816,-500.0,0.00024634,2]
[359434849,1746017437825,-314.60833454,0.00024634,2]
[359434851,1746017437836,-500.0,0.00024634,2]
[359434854,1746017437845,-500.0,0.00024634,2]
[359434857,1746017437854,-500.0,0.00024634,2]
[359434860,1746017437865,-500.0,0.00024634,2]
[359434863,1746017437874,-500.0,0.00024634,2]
[359434867,1746017437883,-500.0,0.00024634,2]
[359434870,1746017437892,-500.0,0.00024634,2]
[359434872,1746017437902,-232.46573895,0.00024634,2]
[359434875,1746017437911,-500.0,0.00024634,2]
[359434877,1746017437920,-500.0,0.00024634,2]
[359434879,1746017437929,-500.0,0.00024634,2]
[359434881,1746017437943,-500.0,0.00024634,2]
[359434884,1746017437953,-500.0,0.00024634,2]
[359434886,1746017437962,-500.0,0.00024634,2]
[359434888,1746017437972,-500.0,0.00024634,2]
[359434890,1746017437982,-181.02768256,0.00024634,2]
[359434892,1746017437991,-500.0,0.00024634,2]
[359434894,1746017438001,-500.0,0.00024634,2]
[359434896,1746017438011,-500.0,0.00024634,2]
[359434898,1746017438020,-420.32943976,0.00024634,2]
[359434900,1746017438029,-500.0,0.00024634,2]
[359434902,1746017438039,-500.0,0.00024634,2]
[359434904,1746017438049,-500.0,0.00024634,2]
[359434906,1746017438058,-500.0,0.00024634,2]
[359434908,1746017438068,-500.0,0.00024634,2]
[359434910,1746017438078,-500.0,0.00024634,2]
[359434912,1746017438087,-500.0,0.00024634,2]
[359434914,1746017438096,-500.0,0.00024634,2]
[359434916,1746017438106,-500.0,0.00024634,2]
[359434918,1746017438117,-500.0,0.00024634,2]
[359434920,1746017438128,-500.0,0.00024634,2]
[359434922,1746017438138,-500.0,0.00024634,2]
[359434924,1746017438148,-500.0,0.00024634,2]
[359434926,1746017438158,-500.0,0.00024634,2]
[359434928,1746017438167,-500.0,0.00024634,2]
[359434930,1746017438177,-500.0,0.00024634,2]
[359434932,1746017438186,-500.0,0.00024634,2]
[359434934,1746017438196,-500.0,0.00024634,2]
[359434936,1746017438205,-500.0,0.00024634,2]
[359434938,1746017438215,-500.0,0.00024634,2]
[359434940,1746017438224,-500.0,0.00024634,2]
[359434942,1746017438234,-500.0,0.00024634,2]
[359434944,1746017438244,-500.0,0.00024634,2]
[359434947,1746017438255,-500.0,0.00024634,2]
[359434948,1746017438265,-500.0,0.00024634,2]
[359434951,1746017438276,-500.0,0.00024634,2]
[359434953,1746017438285,-500.0,0.00024634,2]
[359434955,1746017438294,-500.0,0.00024634,2]
[359434957,1746017438305,-500.0,0.00024634,2]
[359434959,1746017438314,-500.0,0.00024634,2]
[359434961,1746017438324,-500.0,0.00024634,2]
[359434963,1746017438333,-500.0,0.00024634,2]
[359434965,1746017438342,-500.0,0.00024634,2]
[359434967,1746017438351,-500.0,0.00024634,2]
[359434969,1746017438361,-500.0,0.00024634,2]
[359434971,1746017438372,-500.0,0.00024634,2]
[359434973,1746017438382,-500.0,0.00024634,2]
[359434975,1746017438393,-250.0,0.00024634,2]
[359434977,1746017438405,-500.0,0.00024634,2]
[359434979,1746017438414,-160.0,0.00024635,3]
[359434981,1746017438424,-840.47993636,0.00024635,3]
[359434983,1746017438434,-160.0,0.00024636,3]
[359434985,1746017438443,-4677.79476791,0.00024636,3]
[359434987,1746017438454,-182.04053198,0.00024636,3]
[359434989,1746017438463,-160.0,0.00024638,3]
[359434991,1746017438472,-421.37435881,0.00024638,3]
[359434993,1746017438482,-500.0,0.00024673,2]
[359434995,1746017438492,-500.0,0.00024673,2]
[359434997,1746017438501,-500.0,0.00024673,2]
[359434999,1746017438511,-500.0,0.00024673,2]
[359435001,1746017438521,-502.51377694,0.00024673,2]
[359435003,1746017438530,-500.0,0.00024673,2]
[359435005,1746017438540,-500.0,0.00024673,2]
[359435007,1746017438549,-260.96931143,0.00024673,2]
[359435009,1746017438559,-300.0,0.00024673,2]
[359435011,1746017438571,-500.0,0.00024673,2]
[359435013,1746017438580,-500.0,0.00024799,2]
[359435015,1746017438590,-500.0,0.00024799,2]
[359435017,1746017438599,-255.95333171,0.00024799,2]
[359435019,1746017438609,-218.30655777,0.00024799,2]
[359435021,1746017438620,-500.0,0.00024799,2]
[359435023,1746017438630,-547.93692486,0.00024799,2]
[359435025,1746017438639,-15379.5887874,0.000248,2]
[359435027,1746017438649,-5126.5295958,0.00024951,2]
[359435029,1746017438659,-816.68182607,0.00024951,2]
[359435032,1746017438672,-9436.37736553,0.00024951,2]
[359435034,1746017438681,-500.0,0.00024973,2]
[359435036,1746017438691,-500.0,0.00024973,2]
[359435038,1746017438701,-426.43397655,0.00024973,2]
[359435040,1746017438711,-500.0,0.00024973,2]
[359435042,1746017438722,-500.0,0.00024973,2]
[359435044,1746017438731,-500.0,0.00024973,2]
[359435046,1746017438740,-501.55211731,0.00024973,2]
[359435048,1746017438749,-501.03717307,0.00024973,2]
[359435050,1746017438759,-500.0,0.00024973,2]
[359435052,1746017438769,-500.0,0.00024973,2]
[359435054,1746017438779,-593.15966862,0.00024973,2]
[359435056,1746017438788,-422.10997939,0.00024973,2]
[359435058,1746017438798,-151.0,0.00024979,2]
[359435060,1746017438807,-151.0,0.00024979,7]
[359435062,1746017438816,-14782.38586074,0.00025,2]
[359435064,1746017438826,-9798.089832,0.00025,2]
[359435066,1746017438838,-218.36637992,0.00025,2]
[359435068,1746017438847,-218.36637991,0.00025,2]
[359435070,1746017438856,-218.36637991,0.00025,2]
[359435072,1746017438866,-253.288999,0.00025,7]
[359435074,1746017438875,-253.288999,0.00025,7]
[359435076,1746017438885,-151.0,0.00025255,2]
[359435078,1746017438894,-151.0,0.00025255,7]
[359435080,1746017438904,-623.35377468,0.00025423,2]
[359435082,1746017438914,-538.36,0.00025998,3]
[359435084,1746017438924,-420.0,0.00026013,2]
[359435086,1746017438934,-377.0,0.00026013,2]
[359435088,1746017438943,-5000.0,0.0002602,2]
[359435090,1746017438952,-207.4,0.0002602,2]
[359435092,1746017438962,-5000.0,0.0002602,2]
[359435094,1746017438971,-5000.0,0.0002602,2]
[359435096,1746017438981,-5000.0,0.0002602,2]
[359435099,1746017438990,-5000.0,0.0002602,2]
[359435101,1746017438999,-5000.0,0.0002602,2]
[359435103,1746017439009,-4914.54299561,0.0002602,2]
[359435105,1746017439019,-253.288999,0.00026021,7]
[359435107,1746017439028,-253.288999,0.00026021,7]
[359435109,1746017439037,-1680.0,0.00026132,2]
[359435111,1746017439047,-209.0858863,0.00026208,4]
[359435113,1746017439057,-600.0,0.00026316,2]
[359435115,1746017439066,-346.97615639,0.00026387,2]
[359435117,1746017439076,-5000.0,0.00026568,2]
[359435119,1746017439085,-300.82,0.00026588,120]
[359435121,1746017439094,-411.666997,0.00026913,2]
[359435123,1746017439104,-251.53274587,0.00027,2]
[359435125,1746017439114,-313.43553542,0.00027,3]
[359435127,1746017439123,-182.04053198,0.00027,3]
[359435129,1746017439133,-5000.0,0.00027116,2]
[359435131,1746017439142,-651.469322,0.00027175,2]
[359435134,1746017439152,-223.098,0.00027323,16]
[359435136,1746017439162,-253.288999,0.00027373,7]
[359435138,1746017439171,-253.288999,0.00027373,7]
[359435140,1746017439180,-253.288999,0.00027387,7]
[359435141,1746017439190,-253.288999,0.00027387,7]
[359435144,1746017439201,-215.0738,0.00027389,2]
[359435146,1746017439212,-200.0,0.00027397,2]
[359435149,1746017439221,-155.654734,0.00027397,7]
[359435151,1746017439230,-400.0,0.00027397,2]
[359435153,1746017439239,-400.0,0.00027397,2]
[359435155,1746017439248,-400.0,0.00027397,2]
[359435157,1746017439258,-400.0,0.00027397,2]
[359435159,1746017439271,-400.0,0.00027397,2]
[359435161,1746017439280,-400.0,0.00027397,2]
[359435163,1746017439289,-400.0,0.00027397,2]
[359435165,1746017439299,-400.0,0.00027397,2]
[359435167,1746017439308,-400.0,0.00027397,2]
[359435169,1746017439318,-400.0,0.00027397,2]
[359435171,1746017439327,-400.0,0.00027397,2]
[359435174,1746017439337,-400.0,0.00027397,2]
[359435176,1746017439347,-400.0,0.00027397,2]
[359435178,1746017439356,-339.40315856,0.00027397,2]
[359435180,1746017439369,-400.0,0.00027397,2]
[359435182,1746017439379,-400.0,0.00027397,2]
[359435184,1746017439388,-400.0,0.00027397,2]
[359435186,1746017439398,-400.0,0.00027397,2]
[359435188,1746017439407,-400.0,0.00027397,2]
[359435190,1746017439417,-400.0,0.00027397,2]
[359435192,1746017439426,-583.69,0.00027397,2]
[359435194,1746017439436,-151.0,0.00027397,7]
[359435196,1746017439446,-172.85,0.00027397,2]
[359435198,1746017439456,-400.0,0.00027397,2]
[359435200,1746017439466,-480.66,0.00027397,2]
[359435202,1746017439476,-400.0,0.00027397,2]
[359435205,1746017439486,-400.0,0.00027397,2]
[359435207,1746017439496,-158.10979935,0.00027397,2]
[359435209,1746017439505,-400.0,0.00027397,2]
[359435211,1746017439515,-400.0,0.00027397,2]
[359435213,1746017439524,-400.0,0.00027397,2]
[359435215,1746017439533,-567.14,0.00027397,2]
[359435217,1746017439543,-470.45,0.00027397,2]
[359435220,1746017439553,-400.0,0.00027397,2]
[359435223,1746017439562,-497.84,0.00027397,2]
[359435225,1746017439571,-400.0,0.00027397,2]
[359435227,1746017439581,-400.0,0.00027397,2]
[359435229,1746017439591,-500.0,0.00027397,2]
[359435231,1746017439600,-500.0,0.00027397,2]
[359435233,1746017439610,-328.02,0.00027397,2]
[359435235,1746017439622,-400.0,0.00027397,2]
[359435237,1746017439633,-449.45,0.00027397,2]
[359435239,1746017439644,-512.48,0.00027397,2]
[359435241,1746017439654,-400.0,0.00027397,2]
[359435243,1746017439663,-400.0,0.00027397,2]
[359435245,1746017439673,-400.0,0.00027397,2]
[359435247,1746017439683,-400.0,0.00027397,2]
[359435249,1746017439692,-400.0,0.00027397,2]
[359435251,1746017439702,-400.0,0.00027397,2]
[359435254,1746017439711,-400.0,0.00027397,2]
[359435256,1746017439721,-400.0,0.00027397,2]
[359435258,1746017439730,-739.04,0.00027397,2]
[359435260,1746017439740,-549.35,0.00027397,2]
[359435262,1746017439749,-400.0,0.00027397,2]
[359435264,1746017439758,-910.98,0.00027397,2]
[359435266,1746017439767,-1570.19,0.00027397,2]
[359435268,1746017439776,-400.0,0.00027397,2]
[359435270,1746017439785,-400.0,0.00027397,2]
[359435272,1746017439795,-2333.3,0.00027397,2]
[359435274,1746017439805,-485.09,0.00027397,2]
[359435276,1746017439814,-400.0,0.00027397,2]
[359435278,1746017439823,-325.92712347,0.00027397,2]
[359435280,1746017439833,-400.0,0.00027397,2]
[359435282,1746017439843,-726.31,0.00027397,2]
[359435284,1746017439852,-400.0,0.00027397,2]
[359435286,1746017439862,-400.0,0.00027397,2]
[359435288,1746017439873,-421.39,0.00027397,2]
[359435291,1746017439882,-400.0,0.00027397,2]
[359435293,1746017439892,-204.53791224,0.00027397,2]
[359435295,1746017439902,-400.0,0.00027397,2]
[359435297,1746017439911,-400.0,0.00027397,2]
[359435299,1746017439922,-419.14,0.00027397,2]
[359435301,1746017439931,-609.96,0.00027397,2]
[359435303,1746017439942,-1018.96,0.00027397,2]
[359435305,1746017439951,-325.89037028,0.00027397,2]
[359435307,1746017439961,-704.98,0.00027397,2]
[359435309,1746017439971,-400.0,0.00027397,2]
[359435311,1746017439980,-400.0,0.00027397,2]
[359435313,1746017439990,-400.0,0.00027397,2]
[359435315,1746017440000,-792.91,0.00027397,2]
[359435317,1746017440009,-400.0,0.00027397,2]
[359435319,1746017440019,-400.0,0.00027397,2]
[359435321,1746017440029,-400.0,0.00027397,2]
[359435323,1746017440039,-401.07,0.00027397,2]
[359435325,1746017440049,-400.0,0.00027397,2]
[359435327,1746017440059,-400.0,0.00027397,2]
[359435330,1746017440068,-744.28,0.00027397,2]
[359435332,1746017440077,-400.0,0.00027397,2]
[359435334,1746017440087,-495.13939691,0.00027397,2]
[359435336,1746017440096,-151.0,0.00027397,2]
[359435338,1746017440106,-400.0,0.00027397,2]
[359435340,1746017440117,-192.210304,0.00027397,2]
[359435342,1746017440126,-510.2,0.00027397,2]
[359435344,1746017440136,-400.0,0.00027397,2]
[359435346,1746017440145,-400.0,0.00027397,2]
[359435348,1746017440155,-610.88,0.00027397,2]
[359435350,1746017440165,-400.0,0.00027397,2]
[359435352,1746017440175,-588.89,0.00027397,2]
[359435354,1746017440184,-400.0,0.00027397,2]
[359435356,1746017440195,-400.0,0.00027397,2]
[359435358,1746017440204,-400.0,0.00027397,2]
[359435360,1746017440214,-400.0,0.00027397,2]
[359435362,1746017440225,-400.0,0.00027397,2]
[359435364,1746017440234,-400.0,0.00027397,2]
[359435366,1746017440243,-400.0,0.00027397,2]
[359435368,1746017440254,-400.0,0.00027397,2]
[359435370,1746017440264,-400.0,0.00027397,2]
[359435372,1746017440273,-400.0,0.00027397,2]
[359435374,1746017440283,-537.09069218,0.00027397,2]
[359435376,1746017440293,-400.0,0.00027397,2]
[359435378,1746017440303,-400.0,0.00027397,2]
[359435380,1746017440312,-2085.42,0.00027397,2]
[359435382,1746017440322,-400.0,0.00027397,2]
[359435384,1746017440331,-400.0,0.00027397,2]
[359435386,1746017440341,-400.0,0.00027397,2]
[359435388,1746017440350,-400.0,0.00027397,2]
[359435390,1746017440360,-400.0,0.00027397,2]
[359435392,1746017440371,-206.73751043,0.00027397,2]
[359435394,1746017440382,-400.0,0.00027397,2]
[359435396,1746017440391,-400.0,0.00027397,2]
[359435398,1746017440402,-400.0,0.00027397,2]
[359435400,1746017440411,-1743.84,0.00027397,2]
[359435402,1746017440420,-432.89593742,0.00027397,2]
[359435404,1746017440430,-400.0,0.00027397,2]
[359435406,1746017440439,-400.0,0.00027397,2]
[359435408,1746017440448,-400.0,0.00027397,2]
[359435410,1746017440458,-400.0,0.00027397,2]
[359435412,1746017440468,-400.0,0.00027397,2]
[359435414,1746017440477,-930.58,0.00027397,2]
[359435416,1746017440487,-400.0,0.00027397,2]
[359435418,1746017440497,-232.814996,0.00027397,7]
[359435420,1746017440506,-400.0,0.00027397,2]
[359435422,1746017440516,-400.0,0.00027397,2]
[359435424,1746017440526,-400.0,0.00027397,2]
[359435427,1746017440536,-400.0,0.00027397,2]
[359435429,1746017440545,-400.0,0.00027397,2]
[359435430,1746017440554,-400.0,0.00027397,2]
[359435433,1746017440564,-531.0,0.00027397,2]
[359435435,1746017440574,-400.0,0.00027397,2]
[359435437,1746017440584,-400.0,0.00027397,2]
[359435439,1746017440593,-400.0,0.00027397,2]
[359435441,1746017440603,-400.0,0.00027397,2]
[359435443,1746017440613,-400.0,0.00027397,2]
[359435444,1746017440624,-400.0,0.00027397,2]
[359435446,1746017440634,-400.0,0.00027397,2]
[359435449,1746017440644,-953.6,0.00027397,2]
[359435451,1746017440653,-400.0,0.00027397,2]
[359435452,1746017440663,-778.36,0.00027397,2]
[359435455,1746017440672,-826.23,0.00027397,2]
[359435457,1746017440682,-464.32,0.00027397,2]
[359435459,1746017440692,-335.18422877,0.00027397,2]
[359435461,1746017440702,-664.92,0.00027397,2]
[359435463,1746017440712,-676.48,0.00027397,2]
[359435465,1746017440721,-400.0,0.00027397,2]
[359435467,1746017440731,-400.0,0.00027397,2]
[359435469,1746017440740,-400.0,0.00027397,2]
[359435471,1746017440749,-400.0,0.00027397,2]
[359435473,1746017440759,-400.0,0.00027397,2]
[359435475,1746017440768,-1077.96,0.00027397,2]
[359435477,1746017440778,-400.0,0.00027397,2]
[359435479,1746017440787,-400.0,0.00027397,2]
[359435481,1746017440797,-400.0,0.00027397,2]
[359435483,1746017440806,-400.0,0.00027397,2]
[359435485,1746017440816,-1830.06,0.00027397,2]
[359435487,1746017440825,-400.0,0.00027397,2]
[359435489,1746017440835,-161.50526077,0.00027397,2]
[359435491,1746017440844,-1014.12,0.00027397,2]
[359435492,1746017440854,-1454.11,0.00027397,2]
[359435494,1746017440976,-500.0,0.00027397,2]
[359435497,1746017441009,-297.13519768,0.00027397,2]
[359435499,1746017441018,-400.0,0.00027397,2]
[359435501,1746017441028,-253.86901575,0.00027397,2]
[359435502,1746017441038,-643.44,0.00027397,2]
[359435505,1746017441047,-422.22,0.00027397,2]
[359435507,1746017441057,-935.47,0.00027397,2]
[359435508,1746017441066,-1158.2,0.00027397,2]
[359435511,1746017441076,-400.0,0.00027397,2]
[359435512,1746017441086,-400.0,0.00027397,2]
[359435515,1746017441095,-2133.98,0.00027397,2]
[359435517,1746017441105,-400.0,0.00027397,2]
[359435519,1746017441114,-400.0,0.00027397,2]
[359435521,1746017441125,-354.77679867,0.00027397,2]
[359435523,1746017441135,-400.0,0.00027397,2]
[359435525,1746017441144,-400.0,0.00027397,2]
[359435527,1746017441154,-400.0,0.00027397,2]
[359435529,1746017441163,-400.0,0.00027397,2]
[359435531,1746017441172,-400.0,0.00027397,2]
[359435533,1746017441181,-400.0,0.00027397,2]
[359435535,1746017441192,-1552.4,0.00027397,2]
[359435537,1746017441202,-525.64,0.00027397,2]
[359435539,1746017441211,-480.54,0.00027397,2]
[359435541,1746017441221,-400.0,0.00027397,2]
[359435543,1746017441230,-253.288999,0.00027397,7]
[359435545,1746017441240,-253.288999,0.00027397,7]
[359435547,1746017441250,-535.41,0.00027397,2]
[359435549,1746017441264,-400.0,0.00027397,2]
[359435551,1746017441274,-400.0,0.00027397,2]
[359435553,1746017441283,-400.0,0.00027397,2]
[359435555,1746017441294,-310.54397361,0.00027397,2]
[359435557,1746017441304,-406.49049039,0.00027397,2]
[359435559,1746017441313,-400.0,0.00027397,2]
[359435561,1746017441323,-400.0,0.00027397,2]
[359435563,1746017441335,-482.75,0.00027397,2]
[359435565,1746017441346,-400.0,0.00027397,2]
[359435567,1746017441355,-400.0,0.00027397,2]
[359435569,1746017441364,-1381.04,0.00027397,2]
[359435571,1746017441378,-785.98,0.00027397,2]
[359435573,1746017441387,-400.0,0.00027397,2]
[359435575,1746017441396,-400.0,0.00027397,2]
[359435577,1746017441405,-4593.88,0.00027397,2]
[359435579,1746017441415,-1255.91,0.00027397,2]
[359435581,1746017441425,-400.0,0.00027397,2]
[359435583,1746017441436,-521.1,0.00027397,2]
[359435585,1746017441446,-3156.88,0.00027397,2]
[359435587,1746017441455,-1541.01,0.00027397,2]
[359435589,1746017441465,-400.0,0.00027397,2]
[359435591,1746017441474,-287.85793972,0.00027397,2]
[359435593,1746017441484,-1954.9,0.00027397,2]
[359435595,1746017441493,-400.0,0.00027397,2]
[359435597,1746017441503,-981.89,0.00027397,2]
[359435599,1746017441512,-400.0,0.00027397,2]
[359435601,1746017441522,-702.49,0.00027397,2]
[359435603,1746017441531,-4251.49,0.00027397,2]
[359435605,1746017441541,-569.3,0.00027397,2]
[359435607,1746017441551,-400.0,0.00027397,2]
[359435609,1746017441560,-400.0,0.00027397,2]
[359435611,1746017441570,-400.0,0.00027397,2]
[359435613,1746017441580,-400.0,0.00027397,2]
[359435615,1746017441590,-673.15,0.00027397,2]
[359435618,1746017441600,-400.0,0.00027397,2]
[359435620,1746017441609,-1138.91,0.00027397,2]
[359435622,1746017441619,-899.88,0.00027397,2]
[359435624,1746017441628,-1069.56,0.00027397,2]
[359435626,1746017441638,-400.0,0.00027397,2]
[359435628,1746017441647,-235.68202355,0.00027397,2]
[359435629,1746017441657,-400.0,0.00027397,2]
[359435632,1746017441666,-869.24,0.00027397,2]
[359435634,1746017441676,-832.99,0.00027397,2]
[359435636,1746017441686,-400.0,0.00027397,2]
[359435638,1746017441695,-193.188288,0.00027397,120]
[359435640,1746017441705,-1110.848458,0.00027397,2]
[359435642,1746017441715,-182.04053198,0.00027417,2]
[359435644,1746017441724,-160.0,0.00027417,2]
[359435646,1746017441733,-12592.61399441,0.00027417,2]
[359435648,1746017441743,-160.0,0.00027417,2]
[359435650,1746017441752,-664.89559725,0.00027417,2]
[359435666,1746017441894,-176.01044427,0.00027417,2]
[359435668,1746017441904,-160.0,0.00027417,2]
[359435670,1746017441914,-160.0,0.00027417,2]
[359435672,1746017441923,-40.96600583,0.00027447,7]
[359435675,1746017441939,-212.32299317,0.00027447,7]
[359435677,1746017441948,-253.288999,0.00027447,7]
[359435679,1746017441958,-6569.06696007,0.000275,2]
[359435699,1746017442148,-731.54999959,0.000275,2]
[359435701,1746017442160,-6003.48788126,0.000275,2]
[359435704,1746017442173,-3790.6281836,0.000275,2]
[359435717,1746017442287,-314.88465173,0.000275,2]
[359435925,1746017444330,-361.85618498,0.00027397,2]
[359436091,1746017445887,-38.14381502,0.00027397,2]
[359436093,1746017445896,-986.80618498,0.000275,2]
[359436095,1746017445909,-5389.49321058,0.000275,2]
[359436102,1746017445965,-1531.191534,0.000275,2]
[359436106,1746017445977,-4397.64904997,0.000275,2]